[Event "Early-Titled-Tuesday-Blitz-May-28-2024"]
[Site "Chess.com"]
[Date "2024.05.28"]
[Round "10"]
[White "dinushkipremanath"]
[Black "Dexter_Dyke"]
[Result "1-0"]
[WhiteElo "2342"]
[BlackElo "2433"]
[TimeControl "180+1"]
[EndTime "9:56:57 PDT"]
[Termination "dinushkipremanath won on time"]

1. d4 {[%clk 0:03:00.9]} 1... Nf6 {[%clk 0:02:59.4]} 2. Nf3 {[%clk 0:03:01.7]}
2... c5 {[%clk 0:02:59.3]} 3. Bf4 {[%clk 0:03:02.1]} 3... cxd4 {[%clk 0:02:57]}
4. Qxd4 {[%clk 0:03:00.7]} 4... Nc6 {[%clk 0:02:57.3]} 5. Qd1 {[%clk 0:03:01]}
5... Qb6 {[%clk 0:02:55.5]} 6. b3 {[%clk 0:02:57.7]} 6... g6 {[%clk 0:02:53.6]}
7. Nc3 {[%clk 0:02:57.7]} 7... Bg7 {[%clk 0:02:53.5]} 8. Nb1 {[%clk 0:02:55.6]}
8... Ng4 {[%clk 0:02:48.6]} 9. e3 {[%clk 0:02:37.3]} 9... Bxa1 {[%clk
0:02:48.1]} 10. h3 {[%clk 0:02:37.9]} 10... Qa5+ {[%clk 0:02:34.7]} 11. Nbd2
{[%clk 0:02:35.7]} 11... Nf6 {[%clk 0:02:33]} 12. Qxa1 {[%clk 0:02:34.4]} 12...
Nb4 {[%clk 0:02:17.6]} 13. Qc3 {[%clk 0:02:29]} 13... O-O {[%clk 0:02:05.9]} 14.
Be2 {[%clk 0:02:23.3]} 14... Nfd5 {[%clk 0:02:03.4]} 15. Qe5 {[%clk 0:02:21.9]}
15... Nxc2+ {[%clk 0:02:00.6]} 16. Kf1 {[%clk 0:02:17.8]} 16... d6 {[%clk
0:01:49.7]} 17. Qb2 {[%clk 0:02:16.2]} 17... Nxf4 {[%clk 0:01:48.6]} 18. exf4
{[%clk 0:02:13.4]} 18... Nb4 {[%clk 0:01:44.3]} 19. a3 {[%clk 0:02:10.6]} 19...
Nc6 {[%clk 0:01:35.3]} 20. Nc4 {[%clk 0:02:10.4]} 20... Qd5 {[%clk 0:01:27.8]}
21. Ne3 {[%clk 0:02:08.8]} 21... Qe4 {[%clk 0:01:26.5]} 22. g3 {[%clk
0:01:54.5]} 22... d5 {[%clk 0:01:19.1]} 23. Rh2 {[%clk 0:01:53.2]} 23... d4
{[%clk 0:01:19.3]} 24. Ng5 {[%clk 0:01:51.4]} 24... Bf5 {[%clk 0:00:47.6]} 25.
Nxe4 {[%clk 0:01:50.1]} 25... Bxe4 {[%clk 0:00:48.5]} 26. Nc4 {[%clk 0:01:45.1]}
26... d3 {[%clk 0:00:48.4]} 27. Bd1 {[%clk 0:01:43]} 27... Rad8 {[%clk 0:00:48]}
28. f3 {[%clk 0:01:42.6]} 28... Bd5 {[%clk 0:00:46.4]} 29. Ne3 {[%clk
0:01:41.3]} 29... Be6 {[%clk 0:00:45.5]} 30. g4 {[%clk 0:01:40.4]} 30... f5
{[%clk 0:00:44.7]} 31. g5 {[%clk 0:01:36.8]} 31... Nd4 {[%clk 0:00:44.2]} 32. h4
{[%clk 0:01:35]} 32... Rc8 {[%clk 0:00:42.5]} 33. Qxd4 {[%clk 0:01:33.8]} 33...
Rfd8 {[%clk 0:00:41.7]} 34. Qe5 {[%clk 0:01:33.3]} 34... Bf7 {[%clk 0:00:41.3]}
35. h5 {[%clk 0:01:33.7]} 35... gxh5 {[%clk 0:00:26.2]} 36. Nxf5 {[%clk
0:01:32.7]} 36... Kf8 {[%clk 0:00:15.8]} 37. Qh8+ {[%clk 0:01:28]} 37... Bg8
{[%clk 0:00:15.3]} 38. Qg7+ {[%clk 0:01:28.6]} 1-0

[Event "Early-Titled-Tuesday-Blitz-May-28-2024"]
[Site "Chess.com"]
[Date "2024.05.28"]
[Round "10"]
[White "Actuary44"]
[Black "Yan_Dyomin2010"]
[Result "1-0"]
[WhiteElo "2483"]
[BlackElo "2581"]
[TimeControl "180+1"]
[EndTime "9:57:00 PDT"]
[Termination "Actuary44 won by resignation"]

1. e4 {[%clk 0:03:00.9]} 1... c5 {[%clk 0:03:00.3]} 2. d4 {[%clk 0:03:00.6]}
2... cxd4 {[%clk 0:03:01.2]} 3. c3 {[%clk 0:03:00.7]} 3... Nf6 {[%clk
0:02:58.9]} 4. Bd3 {[%clk 0:03:00.2]} 4... dxc3 {[%clk 0:02:58.3]} 5. Nxc3
{[%clk 0:03:01.1]} 5... Nc6 {[%clk 0:02:58.7]} 6. f4 {[%clk 0:03:00.8]} 6... d6
{[%clk 0:02:57.3]} 7. Nf3 {[%clk 0:03:01.2]} 7... g6 {[%clk 0:02:57.8]} 8. O-O
{[%clk 0:03:01.1]} 8... Bg7 {[%clk 0:02:57.7]} 9. Kh1 {[%clk 0:03:01.6]} 9...
O-O {[%clk 0:02:57.4]} 10. Qe1 {[%clk 0:03:02.1]} 10... Bg4 {[%clk 0:02:55.6]}
11. Be3 {[%clk 0:03:01.9]} 11... Bxf3 {[%clk 0:02:55.7]} 12. Rxf3 {[%clk
0:03:02.8]} 12... a6 {[%clk 0:02:39.5]} 13. Rd1 {[%clk 0:03:01.3]} 13... Qa5
{[%clk 0:02:37.6]} 14. Rh3 {[%clk 0:02:59.2]} 14... Rac8 {[%clk 0:02:27.4]} 15.
Qh4 {[%clk 0:02:57.2]} 15... h5 {[%clk 0:02:23.2]} 16. Be2 {[%clk 0:02:57.1]}
16... Qb4 {[%clk 0:02:01.9]} 17. f5 {[%clk 0:02:37.6]} 17... Qxb2 {[%clk
0:01:57.7]} 18. Bc1 {[%clk 0:02:33.3]} 18... Qb4 {[%clk 0:01:47.1]} 19. fxg6
{[%clk 0:02:21.6]} 19... fxg6 {[%clk 0:01:44.6]} 20. Qg5 {[%clk 0:01:57.7]}
20... Ne5 {[%clk 0:01:41.5]} 21. Nd5 {[%clk 0:01:34.2]} 21... Nxd5 {[%clk
0:01:40.3]} 22. exd5 {[%clk 0:01:35.1]} 22... Qe4 {[%clk 0:01:39.7]} 23. Re3
{[%clk 0:01:25.2]} 23... Qf5 {[%clk 0:01:36.6]} 24. Qxe7 {[%clk 0:01:22.9]}
24... Bh6 {[%clk 0:01:30.4]} 25. Rxe5 {[%clk 0:01:00.9]} 25... dxe5 {[%clk
0:01:07.1]} 26. Bxh6 {[%clk 0:00:59]} 26... Rf7 {[%clk 0:01:04.5]} 27. Qe6
{[%clk 0:00:56.1]} 27... Qxe6 {[%clk 0:00:46.2]} 28. dxe6 {[%clk 0:00:57]} 28...
Re7 {[%clk 0:00:46.8]} 29. Bf3 {[%clk 0:00:51.8]} 29... Kh7 {[%clk 0:00:21.6]}
30. Bg5 {[%clk 0:00:51.5]} 30... Rxe6 {[%clk 0:00:21.4]} 31. Rd7+ {[%clk
0:00:51.3]} 31... Kg8 {[%clk 0:00:21.2]} 32. Bd5 {[%clk 0:00:48.8]} 1-0

[Event "Early-Titled-Tuesday-Blitz-May-28-2024"]
[Site "Chess.com"]
[Date "2024.05.28"]
[Round "10"]
[White "Oleksandr_Bortnyk"]
[Black "atbenina64"]
[Result "1-0"]
[WhiteElo "3013"]
[BlackElo "2792"]
[TimeControl "180+1"]
[EndTime "9:57:06 PDT"]
[Termination "Oleksandr_Bortnyk won by resignation"]

1. e4 {[%clk 0:03:00.9]} 1... c5 {[%clk 0:02:59.5]} 2. c3 {[%clk 0:03:00.4]}
2... Nf6 {[%clk 0:02:59.6]} 3. e5 {[%clk 0:03:00.9]} 3... Nd5 {[%clk 0:03:00.2]}
4. d4 {[%clk 0:03:01.8]} 4... cxd4 {[%clk 0:03:01.1]} 5. Nf3 {[%clk 0:03:02.7]}
5... d6 {[%clk 0:03:01.5]} 6. cxd4 {[%clk 0:03:01.5]} 6... Nc6 {[%clk
0:03:01.6]} 7. Bc4 {[%clk 0:03:01.8]} 7... Nb6 {[%clk 0:02:59.6]} 8. Bb5 {[%clk
0:03:01.6]} 8... Bd7 {[%clk 0:02:50]} 9. Nc3 {[%clk 0:03:01.5]} 9... dxe5 {[%clk
0:02:47.1]} 10. d5 {[%clk 0:02:59.6]} 10... Nb4 {[%clk 0:02:36.5]} 11. Bxd7+
{[%clk 0:02:57]} 11... Qxd7 {[%clk 0:02:35.1]} 12. O-O {[%clk 0:02:36.4]} 12...
f6 {[%clk 0:02:31]} 13. Nxe5 {[%clk 0:01:12.2]} 13... fxe5 {[%clk 0:02:28.2]}
14. Qh5+ {[%clk 0:01:12.4]} 14... g6 {[%clk 0:02:14.9]} 15. Qxe5 {[%clk
0:01:12.2]} 15... Rg8 {[%clk 0:02:15.4]} 16. Ne4 {[%clk 0:01:08.2]} 16... Bg7
{[%clk 0:02:04.4]} 17. Qg3 {[%clk 0:01:08.1]} 17... Qxd5 {[%clk 0:01:55.7]} 18.
Re1 {[%clk 0:01:00]} 18... Nc2 {[%clk 0:01:48.4]} 19. Bh6 {[%clk 0:00:57.9]}
19... Nxe1 {[%clk 0:01:39.9]} 20. Rxe1 {[%clk 0:00:57.4]} 20... Rd8 {[%clk
0:01:25.5]} 21. h4 {[%clk 0:00:44.8]} 21... Qa5 {[%clk 0:00:54]} 22. Bd2 {[%clk
0:00:36.4]} 22... Rxd2 {[%clk 0:00:47.2]} 23. Qb8+ {[%clk 0:00:36.3]} 23... Kf7
{[%clk 0:00:32.8]} 24. Qf4+ {[%clk 0:00:36.4]} 24... Bf6 {[%clk 0:00:22.2]} 25.
Ng5+ {[%clk 0:00:35.6]} 25... Kg7 {[%clk 0:00:19.2]} 26. Rxe7+ {[%clk
0:00:35.4]} 1-0

[Event "Early-Titled-Tuesday-Blitz-May-28-2024"]
[Site "Chess.com"]
[Date "2024.05.28"]
[Round "10"]
[White "guineo59"]
[Black "ccccvhhhj"]
[Result "1-0"]
[WhiteElo "2353"]
[BlackElo "2453"]
[TimeControl "180+1"]
[EndTime "9:57:08 PDT"]
[Termination "guineo59 won by resignation"]

1. d4 {[%clk 0:02:59.5]} 1... e5 {[%clk 0:02:59.9]} 2. dxe5 {[%clk 0:02:59.2]}
2... d6 {[%clk 0:03:00.5]} 3. Nf3 {[%clk 0:02:59.5]} 3... Bg4 {[%clk 0:03:00.2]}
4. Bg5 {[%clk 0:02:57]} 4... Qd7 {[%clk 0:03:00]} 5. Nbd2 {[%clk 0:02:52.7]}
5... Nc6 {[%clk 0:02:59.9]} 6. e3 {[%clk 0:02:37.3]} 6... h6 {[%clk 0:02:59.4]}
7. Bh4 {[%clk 0:02:35.2]} 7... g5 {[%clk 0:03:00]} 8. Bg3 {[%clk 0:02:35.5]}
8... O-O-O {[%clk 0:03:00.5]} 9. exd6 {[%clk 0:02:35.1]} 9... Bxd6 {[%clk
0:03:00.6]} 10. Bxd6 {[%clk 0:02:35.2]} 10... Qxd6 {[%clk 0:03:01.5]} 11. Be2
{[%clk 0:02:35]} 11... Nge7 {[%clk 0:02:58.8]} 12. c3 {[%clk 0:02:30.5]} 12...
Bf5 {[%clk 0:02:43.1]} 13. Nd4 {[%clk 0:02:29.1]} 13... Nxd4 {[%clk 0:02:41.2]}
14. cxd4 {[%clk 0:02:27.3]} 14... Ng6 {[%clk 0:02:37.7]} 15. Qa4 {[%clk
0:02:13.5]} 15... Kb8 {[%clk 0:02:37]} 16. Rc1 {[%clk 0:02:08.6]} 16... Nh4
{[%clk 0:02:35]} 17. g3 {[%clk 0:02:08]} 17... Ng6 {[%clk 0:02:28.6]} 18. Bf3
{[%clk 0:02:05.4]} 18... g4 {[%clk 0:02:23.7]} 19. Bg2 {[%clk 0:02:02.5]} 19...
Rhe8 {[%clk 0:02:22.5]} 20. O-O {[%clk 0:02:01.7]} 20... h5 {[%clk 0:02:21.2]}
21. Nc4 {[%clk 0:02:00.2]} 21... Qe7 {[%clk 0:02:08.6]} 22. Na5 {[%clk
0:01:59.3]} 22... Be4 {[%clk 0:02:07.7]} 23. Nxb7 {[%clk 0:01:00.9]} 23... Bxg2
{[%clk 0:02:05.1]} 24. Nxd8 {[%clk 0:00:59]} 24... Rxd8 {[%clk 0:01:40.9]} 25.
Kxg2 {[%clk 0:00:58.2]} 25... h4 {[%clk 0:01:41.1]} 26. Qb5+ {[%clk 0:00:50.5]}
26... Ka8 {[%clk 0:01:38.3]} 27. Qc6+ {[%clk 0:00:50.1]} 27... Kb8 {[%clk
0:01:38.7]} 28. Rc5 {[%clk 0:00:47.2]} 28... h3+ {[%clk 0:01:38.2]} 29. Kg1
{[%clk 0:00:46.6]} 29... Rd6 {[%clk 0:01:35.3]} 30. Rb5+ {[%clk 0:00:41.5]}
30... Kc8 {[%clk 0:01:35.9]} 31. Qb7+ {[%clk 0:00:41.5]} 31... Kd7 {[%clk
0:01:35.8]} 32. Rc1 {[%clk 0:00:41.6]} 32... Ke8 {[%clk 0:01:21.8]} 33. Rxc7
{[%clk 0:00:39.1]} 33... Qe6 {[%clk 0:01:17]} 34. Rc8+ {[%clk 0:00:35.3]} 34...
Rd8 {[%clk 0:01:17]} 35. Rxd8+ {[%clk 0:00:29.8]} 35... Kxd8 {[%clk 0:01:17.9]}
36. Qb8+ {[%clk 0:00:29.1]} 36... Ke7 {[%clk 0:01:17.1]} 37. Qxa7+ {[%clk
0:00:21.9]} 37... Kf6 {[%clk 0:01:16.7]} 38. Rb6 {[%clk 0:00:22]} 38... Nf8
{[%clk 0:01:12.4]} 39. Rxe6+ {[%clk 0:00:21.6]} 39... Nxe6 {[%clk 0:01:13.3]}
40. Qb7 {[%clk 0:00:21.7]} 40... Ng5 {[%clk 0:01:13.5]} 41. a4 {[%clk
0:00:20.9]} 41... Nf3+ {[%clk 0:01:14.1]} 42. Qxf3+ {[%clk 0:00:20.9]} 42...
gxf3 {[%clk 0:01:15]} 43. a5 {[%clk 0:00:21.5]} 43... Ke6 {[%clk 0:01:15.1]} 44.
a6 {[%clk 0:00:21.9]} 44... Kd6 {[%clk 0:01:16]} 45. a7 {[%clk 0:00:22.2]} 1-0

[Event "Early-Titled-Tuesday-Blitz-May-28-2024"]
[Site "Chess.com"]
[Date "2024.05.28"]
[Round "10"]
[White "juancruzarias"]
[Black "xakevicius91"]
[Result "1-0"]
[WhiteElo "2685"]
[BlackElo "2521"]
[TimeControl "180+1"]
[EndTime "9:57:12 PDT"]
[Termination "juancruzarias won by resignation"]

1. d4 {[%clk 0:03:00.9]} 1... Nf6 {[%clk 0:02:58]} 2. c4 {[%clk 0:03:00.3]} 2...
e6 {[%clk 0:02:58]} 3. g3 {[%clk 0:03:00.3]} 3... c5 {[%clk 0:02:57.9]} 4. Nf3
{[%clk 0:02:58.4]} 4... cxd4 {[%clk 0:02:56.6]} 5. Nxd4 {[%clk 0:02:58.8]} 5...
d5 {[%clk 0:02:57.5]} 6. Bg2 {[%clk 0:02:57.5]} 6... e5 {[%clk 0:02:54.9]} 7.
Nb5 {[%clk 0:02:54.5]} 7... a6 {[%clk 0:02:49.3]} 8. N5a3 {[%clk 0:02:53.7]}
8... d4 {[%clk 0:02:45.7]} 9. O-O {[%clk 0:02:52.2]} 9... Nc6 {[%clk 0:02:45.6]}
10. e3 {[%clk 0:02:50.4]} 10... Bc5 {[%clk 0:02:17.2]} 11. exd4 {[%clk
0:02:48.7]} 11... Bxd4 {[%clk 0:02:17.4]} 12. Nc3 {[%clk 0:02:42.4]} 12... Be6
{[%clk 0:02:11.3]} 13. Bg5 {[%clk 0:02:39.2]} 13... h6 {[%clk 0:02:05.6]} 14.
Bxf6 {[%clk 0:02:33.1]} 14... Qxf6 {[%clk 0:02:06.5]} 15. Nd5 {[%clk 0:02:29.9]}
15... Qd8 {[%clk 0:02:05.9]} 16. Nc2 {[%clk 0:02:25.9]} 16... O-O {[%clk
0:02:04]} 17. Rb1 {[%clk 0:02:21.5]} 17... Rc8 {[%clk 0:01:55.9]} 18. Nce3
{[%clk 0:02:17.9]} 18... b5 {[%clk 0:01:52.1]} 19. b3 {[%clk 0:02:16]} 19... Ne7
{[%clk 0:01:47.1]} 20. Re1 {[%clk 0:02:09.7]} 20... Bxd5 {[%clk 0:01:33.3]} 21.
Nxd5 {[%clk 0:01:56.6]} 21... Nxd5 {[%clk 0:01:32.8]} 22. Bxd5 {[%clk
0:01:53.6]} 22... Qb6 {[%clk 0:01:28.1]} 23. Kg2 {[%clk 0:01:51.6]} 23... Rcd8
{[%clk 0:01:16.8]} 24. Qh5 {[%clk 0:01:49.6]} 24... Rd6 {[%clk 0:01:03.9]} 25.
Re2 {[%clk 0:01:43.7]} 25... Rf6 {[%clk 0:01:03.2]} 26. f3 {[%clk 0:01:43.5]}
26... Rd8 {[%clk 0:00:54.8]} 27. Rd1 {[%clk 0:01:41.1]} 27... Qc5 {[%clk
0:00:43.9]} 28. Qg4 {[%clk 0:01:34]} 28... Qb6 {[%clk 0:00:37.3]} 29. Qe4 {[%clk
0:01:33.7]} 29... bxc4 {[%clk 0:00:27.8]} 30. Bxc4 {[%clk 0:01:32.7]} 30... a5
{[%clk 0:00:20.6]} 31. Rc2 {[%clk 0:01:31.2]} 31... Rc6 {[%clk 0:00:19.1]} 32.
Bxf7+ {[%clk 0:01:28.4]} 32... Kxf7 {[%clk 0:00:19.2]} 33. Rxc6 {[%clk
0:01:28.7]} 33... Qb5 {[%clk 0:00:18.7]} 34. Rc7+ {[%clk 0:01:24.9]} 34... Kg8
{[%clk 0:00:18.7]} 35. Rd2 {[%clk 0:01:21.7]} 35... Rd7 {[%clk 0:00:17]} 36.
Rc8+ {[%clk 0:01:20.4]} 36... Kf7 {[%clk 0:00:17]} 37. Qf5+ {[%clk 0:01:20.1]}
37... Ke7 {[%clk 0:00:16]} 38. Qf8+ {[%clk 0:01:13.3]} 38... Ke6 {[%clk
0:00:15.6]} 39. Qe8+ {[%clk 0:01:13.8]} 39... Kd6 {[%clk 0:00:15]} 40. Rd8
{[%clk 0:01:10.9]} 40... Qc6 {[%clk 0:00:11.8]} 41. Qxd7+ {[%clk 0:01:10.6]}
41... Qxd7 {[%clk 0:00:12.7]} 42. Rxd7+ {[%clk 0:01:11.3]} 42... Kxd7 {[%clk
0:00:13.3]} 43. Kf1 {[%clk 0:01:11.9]} 43... Kc6 {[%clk 0:00:13.6]} 44. Ke2
{[%clk 0:01:12.6]} 44... Kc5 {[%clk 0:00:14.5]} 45. Kd3 {[%clk 0:01:13]} 45...
Kd5 {[%clk 0:00:14.1]} 46. Rc2 {[%clk 0:01:13.3]} 1-0

[Event "Early-Titled-Tuesday-Blitz-May-28-2024"]
[Site "Chess.com"]
[Date "2024.05.28"]
[Round "10"]
[White "Alexchess1984"]
[Black "janhelmer03"]
[Result "1-0"]
[WhiteElo "2592"]
[BlackElo "2392"]
[TimeControl "180+1"]
[EndTime "9:57:14 PDT"]
[Termination "Alexchess1984 won by checkmate"]

1. d4 {[%clk 0:03:00.9]} 1... d5 {[%clk 0:02:56.3]} 2. Bf4 {[%clk 0:03:00.6]}
2... Nf6 {[%clk 0:02:52.5]} 3. e3 {[%clk 0:03:00.4]} 3... c5 {[%clk 0:02:52.9]}
4. Nf3 {[%clk 0:02:58.8]} 4... cxd4 {[%clk 0:02:50]} 5. exd4 {[%clk 0:02:58.6]}
5... Nc6 {[%clk 0:02:50.5]} 6. c3 {[%clk 0:02:58.6]} 6... e6 {[%clk 0:02:48.3]}
7. Nbd2 {[%clk 0:02:58.2]} 7... Bd6 {[%clk 0:02:48.7]} 8. Bg3 {[%clk 0:02:58.2]}
8... O-O {[%clk 0:02:48.4]} 9. Bd3 {[%clk 0:02:58.2]} 9... h6 {[%clk 0:02:47.8]}
10. Ne5 {[%clk 0:02:50.5]} 10... Qc7 {[%clk 0:02:45.3]} 11. Ndf3 {[%clk
0:02:48.6]} 11... Nd7 {[%clk 0:02:41.1]} 12. Qe2 {[%clk 0:02:47.4]} 12... Ndxe5
{[%clk 0:02:09]} 13. dxe5 {[%clk 0:02:44.1]} 13... Be7 {[%clk 0:01:54.8]} 14.
O-O {[%clk 0:02:43.8]} 14... Bd7 {[%clk 0:01:43.8]} 15. Rac1 {[%clk 0:02:42.9]}
15... Na5 {[%clk 0:01:41.9]} 16. Bb1 {[%clk 0:02:35.7]} 16... Qc4 {[%clk
0:01:30]} 17. Qc2 {[%clk 0:02:29.9]} 17... g6 {[%clk 0:01:28.8]} 18. h4 {[%clk
0:02:28.6]} 18... Qg4 {[%clk 0:01:07.9]} 19. Rcd1 {[%clk 0:02:17.6]} 19... Nc6
{[%clk 0:01:00.7]} 20. Qd2 {[%clk 0:02:04.7]} 20... Kg7 {[%clk 0:00:56.9]} 21.
Bd3 {[%clk 0:01:43]} 21... a6 {[%clk 0:00:48.1]} 22. Be2 {[%clk 0:01:42.9]}
22... Qa4 {[%clk 0:00:42.8]} 23. b3 {[%clk 0:01:42.2]} 23... Qa5 {[%clk
0:00:40]} 24. Bd3 {[%clk 0:01:35.1]} 24... Rac8 {[%clk 0:00:36.2]} 25. Bf4
{[%clk 0:01:31.8]} 25... Rh8 {[%clk 0:00:35.5]} 26. Rfe1 {[%clk 0:01:23.9]}
26... Na7 {[%clk 0:00:28.1]} 27. Rc1 {[%clk 0:01:23.5]} 27... Nb5 {[%clk
0:00:25.3]} 28. b4 {[%clk 0:01:21.3]} 28... Qa3 {[%clk 0:00:24]} 29. h5 {[%clk
0:01:12.5]} 29... g5 {[%clk 0:00:22.8]} 30. Nxg5 {[%clk 0:01:09.9]} 30... hxg5
{[%clk 0:00:22.6]} 31. Bxg5 {[%clk 0:01:10]} 31... Bxg5 {[%clk 0:00:13.9]} 32.
Qxg5+ {[%clk 0:01:09.9]} 32... Kf8 {[%clk 0:00:14.6]} 33. h6 {[%clk 0:01:08.6]}
33... Ke8 {[%clk 0:00:09.2]} 34. h7 {[%clk 0:01:07.1]} 34... Nxc3 {[%clk
0:00:06.5]} 35. Qg8+ {[%clk 0:01:07.2]} 35... Ke7 {[%clk 0:00:06.5]} 36. Qg5+
{[%clk 0:01:06.7]} 36... Ke8 {[%clk 0:00:05.1]} 37. Qg7 {[%clk 0:01:05.9]} 37...
Ke7 {[%clk 0:00:04.6]} 38. Qf6+ {[%clk 0:01:04.8]} 38... Ke8 {[%clk 0:00:04.4]}
39. Qxh8+ {[%clk 0:01:05.4]} 39... Ke7 {[%clk 0:00:05.1]} 40. Qf6+ {[%clk
0:01:05.7]} 40... Ke8 {[%clk 0:00:04.8]} 41. h8=Q# {[%clk 0:01:06.6]} 1-0

[Event "Early-Titled-Tuesday-Blitz-May-28-2024"]
[Site "Chess.com"]
[Date "2024.05.28"]
[Round "10"]
[White "klercaku"]
[Black "Nekoo04"]
[Result "1-0"]
[WhiteElo "2298"]
[BlackElo "2413"]
[TimeControl "180+1"]
[EndTime "9:57:15 PDT"]
[Termination "klercaku won by resignation"]

1. e4 {[%clk 0:03:00.9]} 1... c5 {[%clk 0:02:18.1]} 2. Nf3 {[%clk 0:02:59.5]}
2... d6 {[%clk 0:02:18.6]} 3. d4 {[%clk 0:02:59.2]} 3... cxd4 {[%clk 0:02:19.5]}
4. Nxd4 {[%clk 0:03:00]} 4... Nf6 {[%clk 0:02:20.4]} 5. Nc3 {[%clk 0:02:59.6]}
5... Nc6 {[%clk 0:02:21.1]} 6. Be2 {[%clk 0:02:59.3]} 6... g6 {[%clk 0:02:21.2]}
7. Be3 {[%clk 0:02:59.4]} 7... Bg7 {[%clk 0:02:21.8]} 8. O-O {[%clk 0:02:59.5]}
8... O-O {[%clk 0:02:22.4]} 9. Qd2 {[%clk 0:02:59]} 9... Ng4 {[%clk 0:02:20.5]}
10. Bxg4 {[%clk 0:02:49.1]} 10... Bxg4 {[%clk 0:02:21.4]} 11. h3 {[%clk
0:02:45.5]} 11... Bd7 {[%clk 0:02:18.1]} 12. f4 {[%clk 0:02:43.5]} 12... Rc8
{[%clk 0:02:14]} 13. Rad1 {[%clk 0:02:39.1]} 13... a6 {[%clk 0:01:50.2]} 14. f5
{[%clk 0:02:38.2]} 14... b5 {[%clk 0:01:45.7]} 15. a3 {[%clk 0:02:12.7]} 15...
Ne5 {[%clk 0:01:33.3]} 16. b3 {[%clk 0:02:02.5]} 16... Nc6 {[%clk 0:01:07]} 17.
Rf2 {[%clk 0:01:37.1]} 17... Nxd4 {[%clk 0:00:20.2]} 18. Bxd4 {[%clk 0:01:36.7]}
18... Bxd4 {[%clk 0:00:19.2]} 19. Qxd4 {[%clk 0:01:37.3]} 19... Bc6 {[%clk
0:00:18.6]} 20. Ne2 {[%clk 0:01:17.3]} 20... Bb7 {[%clk 0:00:15.7]} 21. Nf4
{[%clk 0:01:12.2]} 21... Qc7 {[%clk 0:00:15.7]} 22. f6 {[%clk 0:00:33.2]} 22...
e5 {[%clk 0:00:13.2]} 23. Qe3 {[%clk 0:00:30.6]} 23... exf4 {[%clk 0:00:12.3]}
24. Qxf4 {[%clk 0:00:31.5]} 24... Qc5 {[%clk 0:00:12.5]} 25. Qh6 {[%clk
0:00:29.6]} 1-0

[Event "Early-Titled-Tuesday-Blitz-May-28-2024"]
[Site "Chess.com"]
[Date "2024.05.28"]
[Round "10"]
[White "Aguiar94"]
[Black "JAN2404"]
[Result "1-0"]
[WhiteElo "2672"]
[BlackElo "1966"]
[TimeControl "180+1"]
[EndTime "9:57:18 PDT"]
[Termination "Aguiar94 won by resignation"]

1. e4 {[%clk 0:02:50.1]} 1... c5 {[%clk 0:02:59.4]} 2. Nf3 {[%clk 0:02:49.6]}
2... d6 {[%clk 0:02:59.9]} 3. d4 {[%clk 0:02:49.4]} 3... cxd4 {[%clk 0:03:00.7]}
4. Qxd4 {[%clk 0:02:49.1]} 4... Nc6 {[%clk 0:02:59.5]} 5. Bb5 {[%clk 0:02:48.7]}
5... Bd7 {[%clk 0:03:00.2]} 6. Bxc6 {[%clk 0:02:48.2]} 6... bxc6 {[%clk
0:02:58.5]} 7. O-O {[%clk 0:02:46.5]} 7... e5 {[%clk 0:02:56.2]} 8. Qd3 {[%clk
0:02:45.7]} 8... Nf6 {[%clk 0:02:56.8]} 9. c4 {[%clk 0:02:44.8]} 9... Be7 {[%clk
0:02:57.1]} 10. Nc3 {[%clk 0:02:43.9]} 10... O-O {[%clk 0:02:52.5]} 11. h3
{[%clk 0:02:44.2]} 11... Nh5 {[%clk 0:02:40.8]} 12. Rd1 {[%clk 0:02:40.9]} 12...
Be6 {[%clk 0:02:35.1]} 13. b3 {[%clk 0:02:39.3]} 13... f5 {[%clk 0:02:29.9]} 14.
Ba3 {[%clk 0:02:31.7]} 14... Nf4 {[%clk 0:02:22.2]} 15. Qe3 {[%clk 0:02:27.9]}
15... Qa5 {[%clk 0:02:10.7]} 16. Bb2 {[%clk 0:02:25.1]} 16... Rab8 {[%clk
0:01:54]} 17. Rd2 {[%clk 0:02:17.1]} 17... Rf6 {[%clk 0:01:43.8]} 18. Kh2 {[%clk
0:01:59.3]} 18... Rbf8 {[%clk 0:01:35]} 19. c5 {[%clk 0:01:54.1]} 19... Rg6
{[%clk 0:01:29.5]} 20. Rg1 {[%clk 0:01:50.3]} 20... Qc7 {[%clk 0:00:54.5]} 21.
cxd6 {[%clk 0:01:42.9]} 21... Bxd6 {[%clk 0:00:54.9]} 22. exf5 {[%clk
0:01:40.4]} 22... Bxf5 {[%clk 0:00:53.4]} 23. Ne4 {[%clk 0:01:40]} 23... Nd5
{[%clk 0:00:32.4]} 24. Qe2 {[%clk 0:01:35.7]} 24... Rh6 {[%clk 0:00:21.9]} 25.
Nxd6 {[%clk 0:01:25]} 25... Qxd6 {[%clk 0:00:20.5]} 26. Qxe5 {[%clk 0:01:16.4]}
26... Qg6 {[%clk 0:00:18.1]} 27. Qg3 {[%clk 0:01:05.9]} 27... Bg4 {[%clk
0:00:12.1]} 28. Ne5 {[%clk 0:01:03.7]} 28... Qh5 {[%clk 0:00:01]} 29. Nxg4
{[%clk 0:01:01.6]} 29... Rg6 {[%clk 0:00:01]} 30. Re1 {[%clk 0:00:56.1]} 30...
Nf4 {[%clk 0:00:00.9]} 31. Re5 {[%clk 0:00:51.2]} 31... Kh8 {[%clk 0:00:01]} 1-0

[Event "Early-Titled-Tuesday-Blitz-May-28-2024"]
[Site "Chess.com"]
[Date "2024.05.28"]
[Round "10"]
[White "Dewarfd"]
[Black "chess_sharparchitect"]
[Result "0-1"]
[WhiteElo "2135"]
[BlackElo "2363"]
[TimeControl "180+1"]
[EndTime "9:57:21 PDT"]
[Termination "chess_sharparchitect won on time"]

1. d4 {[%clk 0:03:00.9]} 1... Nf6 {[%clk 0:02:54.1]} 2. e3 {[%clk 0:02:59.8]}
2... d5 {[%clk 0:02:53.8]} 3. Nf3 {[%clk 0:02:59.7]} 3... Bf5 {[%clk 0:02:49.3]}
4. Bd3 {[%clk 0:02:59.1]} 4... Be4 {[%clk 0:02:47.6]} 5. Bxe4 {[%clk 0:02:58]}
5... Nxe4 {[%clk 0:02:45.8]} 6. Nc3 {[%clk 0:02:54.4]} 6... Nxc3 {[%clk
0:02:45.2]} 7. bxc3 {[%clk 0:02:53.9]} 7... e6 {[%clk 0:02:45.1]} 8. Qd3 {[%clk
0:02:53.2]} 8... Nd7 {[%clk 0:02:41.7]} 9. O-O {[%clk 0:02:48.6]} 9... Nb6
{[%clk 0:02:32.1]} 10. a4 {[%clk 0:02:44.3]} 10... a5 {[%clk 0:02:25.2]} 11. e4
{[%clk 0:02:31.7]} 11... dxe4 {[%clk 0:02:04.2]} 12. Qxe4 {[%clk 0:02:25.8]}
12... Qd5 {[%clk 0:02:04.7]} 13. Qg4 {[%clk 0:02:20.1]} 13... g6 {[%clk
0:01:41]} 14. Qf4 {[%clk 0:01:46.2]} 14... Bd6 {[%clk 0:01:09.6]} 15. Qf6 {[%clk
0:01:43.3]} 15... Rf8 {[%clk 0:01:04.6]} 16. Ne5 {[%clk 0:00:19.4]} 16... Bxe5
{[%clk 0:00:51.9]} 17. dxe5 {[%clk 0:00:19.4]} 17... Nd7 {[%clk 0:00:49.1]} 18.
Qh4 {[%clk 0:00:10.3]} 18... Qxe5 {[%clk 0:00:46.9]} 19. Ba3 {[%clk 0:00:08.3]}
19... c5 {[%clk 0:00:45.7]} 20. Rab1 {[%clk 0:00:06.8]} 20... b6 {[%clk
0:00:41.2]} 21. c4 {[%clk 0:00:05.6]} 21... Qf6 {[%clk 0:00:34.4]} 22. Qe4
{[%clk 0:00:03.5]} 22... Rc8 {[%clk 0:00:31.6]} 23. Bb2 {[%clk 0:00:02.1]} 23...
Qf5 {[%clk 0:00:29.7]} 24. Qb7 {[%clk 0:00:01]} 24... Rb8 {[%clk 0:00:26.3]} 0-1